bitfinex/quotes_ETHUSD_20241103
["timestamp","ask_amount","ask_price","bid_price","bid_amount"]
[1730644984561,4.11678,2429.1,2428.9,0.01]
[1730644984762,4.11678,2429.1,2428.3,7.97984796]
[1730644984763,4.11725,2428.8,2428.7,0.01]
[1730644986494,4.16953249,2428.8,2428.7,0.01]
[1730644987296,0.05228249,2428.8,2428.7,0.01]
[1730644987672,4.16953249,2428.8,2428.7,0.01]
[1730644988600,4.11759,2428.6,2428.5,0.01]
[1730644988775,4.16981697,2428.6,2428.5,0.01]
[1730644991871,0.05222697,2428.6,2428.5,0.01]
[1730644992073,0.05222697,2428.6,2428.5,0.8267]
[1730644992275,4.11702,2429.0,2428.9,0.01]
[1730644992483,7.88828,2429.2,2428.9,0.01]
[1730644992484,4.88828,2429.2,2428.9,0.01]
[1730644992808,4.11668,2429.2,2428.9,0.01]
[1730644993171,4.11637,2429.4,2429.3,0.01]
[1730644993422,4.11602,2429.6,2429.3,0.01]
[1730644993712,19.58568,2429.8,2429.3,0.01]
[1730644993713,4.11624,2429.4,2429.3,0.01]
[1730644994080,4.11586,2429.7,2429.3,0.01]
[1730644994263,15.47,2429.8,2429.7,0.01]
[1730644994465,4.11549,2429.9,2429.7,0.01]
[1730644994466,15.47,2429.9,2429.7,0.01]
[1730644994763,15.47,2430.0,2429.9,4.12539]
[1730644994988,15.47,2430.4,2430.3,0.01]
[1730644995188,15.47,2430.4,2430.1,4.92872]
[1730644995189,19.58416,2430.7,2430.5,0.01]
[1730644995703,23.69832,2430.7,2430.5,0.01]
[1730644995864,19.58416,2430.7,2430.5,0.01]
[1730644996069,4.11421,2430.6,2430.5,0.01]
[1730644996296,4.11421,2430.6,2430.3,0.01]
[1730644996297,4.1145,2430.5,2430.3,0.01]
[1730644996603,8.22899,2430.5,2430.3,0.01]
[1730644996907,8.22903,2430.5,2430.3,0.01]
[1730644997111,4.11421,2430.6,2430.1,0.01]
[1730644997317,4.11488,2430.2,2430.1,0.01]
[1730644998085,4.11488,2430.2,2429.8,0.01]
[1730644998086,4.11539,2429.9,2429.8,0.01]
[1730644998285,4.11522,2430.0,2429.8,0.01]
[1730644998596,4.11463,2430.4,2430.3,0.01]
[1730644999471,4.88189,2430.5,2430.1,0.01]
[1730644999672,4.11488,2430.2,2429.9,0.01]
[1730644999982,4.11522,2430.0,2429.9,0.01]
[1730645000585,4.11556,2429.8,2429.7,0.01]
[1730645001719,0.04997785,2429.8,2429.7,0.01]
[1730645002718,4.11526,2430.0,2429.7,0.01]
[1730645002883,0.04963212,2429.8,2429.7,0.01]
[1730645003220,8.23033,2430.1,2429.7,0.01]
[1730645003221,4.11515,2430.1,2429.7,0.01]
[1730645003400,0.04963212,2429.8,2429.7,0.834174]
[1730645003610,4.11515,2430.1,2430.0,0.01]
[1730645008222,15.47,2430.2,2430.0,0.01]
[1730645008389,15.47,2430.3,2430.2,0.01]
[1730645008730,15.47,2430.4,2430.2,0.01]
[1730645009730,15.47,2430.4,2430.2,4.948887]
[1730645010630,15.47,2430.4,2430.3,0.8137]
[1730645011397,15.47,2430.7,2430.6,0.01]
[1730645011598,19.5837,2430.9,2430.8,0.01]
[1730645012410,15.47,2430.9,2430.8,0.01]
[1730645012609,19.5837,2430.9,2430.8,0.01]
[1730645012925,15.47,2430.9,2430.8,0.01]
[1730645014742,19.5837,2430.9,2430.8,0.01]
[1730645014946,4.11387,2430.8,2430.7,0.01]
[1730645015842,4.11421,2430.6,2430.5,0.01]
[1730645016643,4.16310818,2430.6,2430.5,0.01]
[1730645018729,4.11454,2430.4,2430.3,0.01]
[1730645018935,4.11488,2430.2,2430.1,0.01]
[1730645019238,19.58474,2430.3,2430.1,0.01]
[1730645019461,0.04873581,2430.2,2430.1,0.01]
[1730645019756,19.58474,2430.3,2430.1,0.01]
[1730645019915,0.04873581,2430.2,2430.1,0.01]
[1730645020415,19.58474,2430.3,2430.1,0.01]
[1730645020616,0.04873581,2430.2,2430.1,0.01]
[1730645020949,15.47,2430.3,2430.1,0.01]
[1730645021126,0.04873581,2430.2,2430.1,0.834059]
[1730645021513,15.47,2430.3,2430.1,0.834059]
[1730645021738,0.04865461,2430.2,2430.1,0.834059]
[1730645022133,15.47,2430.3,2430.1,0.834059]
[1730645022345,0.04776461,2430.2,2430.1,0.834059]
[1730645022550,0.04776461,2430.2,2430.1,0.01]
[1730645022724,19.58473,2430.3,2430.1,0.01]
[1730645022920,0.04776461,2430.2,2430.1,0.01]
[1730645023129,4.16264461,2430.2,2430.1,0.01]
[1730645023429,4.11488,2430.2,2430.1,0.01]
[1730645023629,4.16264461,2430.2,2430.1,0.01]
[1730645025033,0.04776461,2430.2,2430.1,0.01]
[1730645025255,15.47,2430.3,2430.1,0.01]
[1730645025571,0.04776461,2430.2,2430.1,0.01]
[1730645026076,0.04767486,2430.2,2430.1,0.01]
[1730645026231,19.58475,2430.3,2430.1,0.01]
[1730645026567,0.04767486,2430.2,2430.1,0.01]
[1730645026931,19.58475,2430.3,2430.1,0.01]
[1730645027134,4.16255486,2430.2,2430.1,0.01]
[1730645027353,4.16255486,2430.2,2429.6,4.87022]
[1730645027354,4.11508,2430.1,2429.6,0.01]
[1730645027556,4.11573,2429.7,2429.6,0.01]
[1730645027826,4.16330655,2429.7,2429.6,0.01]
[1730645028265,0.04757655,2429.7,2429.6,0.01]
[1730645028667,0.04757655,2429.7,2429.3,0.7738]
[1730645028668,4.11516,2430.1,2429.8,0.01]
[1730645029666,20.35512,2430.2,2429.8,0.01]
[1730645029667,4.11524,2430.0,2429.8,0.01]
[1730645030552,20.35522,2430.2,2429.8,0.01]
[1730645031015,4.11524,2430.0,2429.8,0.01]
[1730645031475,0.04739702,2429.9,2429.8,0.01]
[1730645031953,4.16278702,2429.9,2429.8,0.01]
[1730645032155,4.16278702,2429.9,2429.6,0.01]
[1730645032342,4.11556,2429.8,2429.6,0.01]
[1730645032772,0.04742695,2429.7,2429.6,0.01]
[1730645033276,4.11556,2429.8,2429.6,0.01]
[1730645033447,0.04742695,2429.7,2429.6,0.01]
[1730645033829,4.11556,2429.8,2429.6,0.01]
[1730645034036,0.04738848,2429.7,2429.6,0.01]
[1730645034463,4.11556,2429.8,2429.6,0.01]
[1730645034888,0.04738848,2429.7,2429.6,0.01]
[1730645035073,4.11556,2429.8,2429.6,0.01]
[1730645035400,0.04738848,2429.7,2429.6,0.01]
[1730645035707,4.11556,2429.8,2429.6,0.01]
[1730645036162,0.04738848,2429.7,2429.6,0.01]
[1730645036598,8.23095,2429.9,2429.6,0.01]
[1730645036804,0.04734572,2429.7,2429.6,0.01]
[1730645036972,0.04734572,2429.7,2429.4,4.11616]
[1730645036973,16.2402,2430.2,2429.8,0.01]
[1730645037304,15.47,2430.2,2430.0,0.01]
[1730645039078,19.58491,2430.2,2430.0,0.01]
[1730645040095,15.47,2430.2,2430.0,0.01]
[1730645040264,19.58489,2430.2,2430.0,0.01]
[1730645041512,15.47,2430.2,2430.0,0.01]
[1730645042003,15.47,2430.2,2430.0,0.499911]
[1730645042625,4.11505,2430.1,2429.8,0.01]
[1730645042776,4.11539,2429.9,2429.8,0.01]
[1730645046480,0.04730297,2429.9,2429.8,0.01]
[1730645047422,4.16269297,2429.9,2429.8,0.01]
[1730645049023,4.11573,2429.7,2429.6,0.01]
[1730645049315,0.04737139,2429.7,2429.6,0.01]
[1730645049679,0.04736712,2429.7,2429.6,0.01]
[1730645050089,4.11549,2429.9,2429.6,0.01]
[1730645050294,0.04736712,2429.8,2429.6,0.01]
[1730645050528,4.11573,2429.7,2429.6,0.01]
[1730645050680,4.16305435,2429.7,2429.6,0.01]
[1730645051584,4.16305435,2429.7,2429.4,0.01]
[1730645051816,4.16305435,2429.7,2429.0,1.68371796]
[1730645051817,4.11624,2429.4,2429.3,0.01]
[1730645052985,4.16349595,2429.4,2429.3,0.01]
[1730645055893,0.04725595,2429.4,2429.3,0.01]
[1730645056626,4.16349595,2429.4,2429.3,0.01]
[1730645057186,4.11658,2429.2,2429.1,0.01]
[1730645057397,4.11709,2428.9,2428.8,0.01]
[1730645057591,4.11658,2429.2,2428.2,1.72363592]
[1730645057592,4.11742,2428.7,2428.6,0.01]
[1730645057795,4.86938,2428.8,2428.4,0.01]
[1730645057796,4.11776,2428.5,2428.4,0.01]
[1730645058403,4.16491759,2428.5,2428.4,0.01]
[1730645059041,4.1181,2428.3,2428.2,0.01]
[1730645059342,4.16476143,2428.3,2428.2,0.01]
[1730645059700,0.04666143,2428.3,2428.2,0.01]
[1730645060499,4.11844,2428.1,2428.0,0.01]
[1730645060698,4.16502868,2428.1,2428.0,0.01]
[1730645063245,0.04658868,2428.1,2428.0,0.01]
[1730645063808,4.16502868,2428.1,2428.0,0.01]
[1730645064236,0.04658868,2428.1,2428.0,0.01]
[1730645066544,4.16502868,2428.1,2428.0,0.01]
[1730645070056,0.04658868,2428.1,2428.0,0.01]
[1730645070613,4.98622868,2428.1,2428.0,0.01]
[1730645070841,4.16502868,2428.1,2428.0,0.01]
[1730645071223,4.16502868,2428.1,2427.8,0.01]
[1730645071224,4.11878,2427.9,2427.8,0.01]
[1730645071531,4.16465828,2427.9,2427.8,0.01]
[1730645071727,0.04587828,2427.9,2427.8,0.01]
[1730645071955,4.11839,2428.2,2427.8,0.01]
[1730645072261,0.04587828,2427.9,2427.8,0.01]
[1730645072487,4.11852,2428.1,2427.8,0.01]
[1730645072777,4.93925,2428.4,2428.1,0.01]
[1730645072990,4.11737,2428.8,2428.4,0.01]
[1730645073141,5.01,2429.2,2428.8,0.01]
[1730645073142,4.529296,2429.2,2428.8,0.01]
[1730645073347,4.11686,2429.1,2428.8,0.01]
[1730645073651,4.11686,2429.1,2428.6,4.11757]
[1730645073652,4.1168,2429.1,2429.0,0.01]
[1730645073838,0.8212,2429.3,2429.0,0.01]
[1730645074164,4.11666,2429.2,2429.0,0.01]
[1730645074368,8.23334,2429.2,2429.0,0.01]
[1730645074682,4.11709,2428.9,2428.8,0.01]
[1730645075177,4.11742,2428.7,2428.6,0.01]
[1730645076443,4.93848,2428.8,2428.4,0.01]
[1730645076778,4.11776,2428.5,2428.4,0.01]
[1730645077478,4.16269164,2428.5,2428.4,0.01]
[1730645079680,4.1181,2428.3,2428.2,0.01]
[1730645080099,4.16303164,2428.3,2428.2,0.01]
[1730645082785,0.04493164,2428.3,2428.2,0.01]
[1730645083095,4.11704,2429.0,2428.2,4.88097]
[1730645083301,4.11704,2429.0,2428.3,4.606137]
[1730645083302,4.11736,2428.8,2428.3,4.606137]
[1730645083504,4.11711,2428.9,2428.7,0.01]
[1730645083686,4.16049193,2428.8,2428.7,0.01]
[1730645083889,4.16049193,2428.8,2428.2,0.7527]
[1730645083890,4.11759,2428.6,2428.5,0.01]
[1730645084068,4.1608405,2428.6,2428.5,0.01]
[1730645086299,4.1608405,2428.6,2427.9,0.7527]
[1730645086300,4.11793,2428.4,2428.3,0.01]
[1730645086507,4.16122337,2428.4,2428.3,0.01]
[1730645086706,0.04329337,2428.4,2428.3,0.01]
[1730645087364,4.57733171,2428.4,2428.3,0.01]
[1730645087767,0.04329337,2428.4,2428.3,0.01]
[1730645088673,4.16122337,2428.4,2428.3,0.01]
[1730645088897,0.04329337,2428.4,2428.3,0.01]
[1730645089901,4.11756,2428.7,2428.3,0.01]
[1730645090101,4.11778,2428.5,2428.3,0.01]
[1730645090266,4.11761,2428.6,2428.5,0.01]
[1730645090767,4.16088622,2428.6,2428.5,0.01]
[1730645096986,0.04327622,2428.6,2428.5,0.01]
[1730645097500,0.04338339,2428.6,2428.5,0.01]
[1730645098068,4.16097339,2428.6,2428.5,0.01]
[1730645098316,0.04338339,2428.6,2428.3,0.01]
[1730645098480,4.11793,2428.4,2428.3,0.01]
[1730645098674,4.16131339,2428.4,2428.3,0.01]
[1730645100395,0.04338339,2428.4,2428.3,0.01]
[1730645100593,0.04338339,2428.4,2428.3,5.357118]
[1730645100805,7.11677,2429.1,2428.9,0.01]
[1730645100806,4.11687,2429.1,2428.9,0.01]
[1730645101021,4.1166,2429.2,2428.9,0.01]
[1730645101171,4.1166,2429.2,2429.1,0.01]
[1730645101373,4.11644,2429.3,2429.1,0.01]
[1730645101709,4.11644,2429.3,2427.8,2.58681106]
[1730645101710,4.11712,2428.9,2428.5,0.01]
[1730645101910,4.11787,2428.5,2428.4,0.01]
[1730645102499,4.11759,2428.6,2428.4,0.01]
[1730645103007,4.1174,2428.8,2428.6,0.01]
[1730645103207,4.11742,2428.7,2428.6,0.01]
[1730645103637,4.1174,2428.8,2428.4,0.01]
[1730645103638,4.11776,2428.5,2428.4,0.01]
[1730645104314,4.11762,2428.6,2428.4,0.01]
[1730645104816,4.11776,2428.5,2428.4,0.01]
[1730645105184,4.11776,2428.5,2428.2,0.8162]
[1730645105185,4.1181,2428.3,2428.2,0.01]
[1730645106512,4.16150909,2428.3,2428.2,0.01]
[1730645109018,4.11844,2428.1,2428.0,0.01]
[1730645109473,4.16184909,2428.1,2428.0,0.01]
[1730645109675,4.16184909,2428.1,2427.8,0.01]
[1730645109676,4.11878,2427.9,2427.8,0.01]
[1730645110101,4.16218909,2427.9,2427.8,0.01]
[1730645110598,4.16218909,2427.9,2427.6,0.01]
[1730645110839,4.11912,2427.7,2427.6,0.01]
[1730645111204,4.11898,2427.8,2427.6,0.01]
[1730645111551,0.04319475,2427.7,2427.6,0.01]
[1730645111845,4.1189,2427.9,2427.8,0.01]
[1730645112441,4.11861,2428.0,2427.8,0.01]
[1730645112639,4.11856,2428.1,2428.0,0.01]
[1730645113001,4.11832,2428.2,2428.0,0.01]
[1730645113441,2.0,2428.3,2428.2,0.01]
[1730645113630,2.0,2428.3,2428.2,0.422843]
[1730645114200,2.0,2428.3,2427.7,1.67463048]
[1730645114406,4.11852,2428.1,2428.0,0.01]
[1730645115213,4.8742,2428.2,2428.0,0.01]
[1730645115410,4.8742,2428.2,2427.6,4.93533]
[1730645115411,4.11878,2427.9,2427.8,0.01]
[1730645117313,4.11912,2427.7,2427.6,0.01]
[1730645118034,5.0,2428.1,2427.4,0.01]
[1730645118244,4.11965,2427.4,2427.2,0.01]
[1730645118411,4.11939,2427.6,2427.2,0.01]
[1730645118612,4.11939,2427.6,2427.5,0.01]
[1730645120035,4.11912,2427.7,2427.5,0.01]
[1730645120953,4.11929,2427.6,2427.5,0.01]
[1730645121651,0.04266266,2427.6,2427.5,0.01]
[1730645121854,0.04266266,2427.6,2427.5,4.95226]
[1730645122075,0.04266266,2427.6,2427.3,0.01]
[1730645122349,4.11997,2427.2,2427.1,0.01]
[1730645122552,4.93407,2427.2,2427.1,0.01]
[1730645122861,4.97672837,2427.2,2427.1,0.01]
[1730645123515,4.12031,2427.0,2426.9,0.01]
[1730645123719,4.16253942,2427.0,2426.9,0.01]
[1730645124063,4.12059,2426.9,2426.7,0.01]
[1730645124415,0.04222084,2426.8,2426.7,0.01]
[1730645124752,4.1206,2426.9,2426.7,0.01]
[1730645124952,0.04214789,2426.8,2426.7,0.01]
[1730645125551,4.12031,2427.0,2426.7,0.01]
[1730645125864,0.04213931,2426.9,2426.7,0.01]
[1730645126158,4.12023,2427.1,2426.7,0.01]
[1730645126370,4.11983,2427.3,2427.1,0.01]
[1730645126523,0.8141,2427.4,2426.9,0.01]
[1730645126720,4.12031,2427.0,2426.9,0.01]
[1730645126965,8.24025,2427.2,2426.9,0.01]
[1730645127122,4.12012,2427.2,2426.9,0.01]
[1730645127785,4.93323,2427.7,2427.3,0.01]
[1730645127924,4.11929,2427.6,2427.3,0.01]
[1730645128123,4.11976,2427.4,2427.3,0.01]
[1730645128445,4.11981,2427.3,2427.1,0.01]
[1730645128649,4.11958,2427.5,2427.1,0.01]
[1730645129341,4.11929,2427.6,2427.1,0.01]
[1730645129541,4.11929,2427.6,2426.7,4.1208]
[1730645129542,4.12015,2427.1,2426.9,0.01]
[1730645129758,4.12031,2427.0,2426.9,0.01]
[1730645130075,4.12015,2427.1,2426.9,0.01]
[1730645130260,0.8204,2427.4,2426.9,0.01]
[1730645130446,4.12022,2427.1,2426.9,0.01]
[1730645130645,4.12031,2427.0,2426.9,0.01]
[1730645130850,3.8204,2426.9,2426.3,0.0605556]
[1730645131088,4.12031,2427.0,2425.1,0.0605478]
[1730645131089,0.8204,2425.8,2425.1,0.0605478]
[1730645131381,0.8204,2425.8,2425.3,4.12311]
[1730645131597,0.8204,2425.8,2425.2,0.8104]
[1730645131598,9.06539,2425.8,2425.2,0.8104]
[1730645131888,9.06539,2425.8,2425.1,0.0605478]
[1730645131889,4.12269,2425.6,2425.1,0.0605478]
[1730645132569,4.12272,2425.6,2425.1,0.0605478]
[1730645132735,4.12273,2425.6,2425.1,0.0605478]
[1730645133062,4.1224,2425.8,2425.1,0.0605478]
[1730645133260,4.94247,2426.0,2425.2,0.8104]
[1730645133473,4.12207,2426.0,2425.3,4.12315]
[1730645133646,2.0,2425.8,2425.4,0.58580809]
[1730645133853,2.0,2425.8,2425.7,4.12252]
[1730645133854,1.13994842,2425.8,2425.7,4.12252]
[1730645134078,1.13994842,2425.8,2425.7,4.93292]
[1730645134404,0.8204,2427.0,2425.4,4.12297]
[1730645134405,4.12008,2427.2,2426.5,0.8104]
[1730645134536,4.12008,2427.2,2426.6,4.12095]
[1730645134537,0.04080402,2427.1,2426.6,4.12095]
[1730645134879,0.04080402,2427.1,2426.7,0.493135]
[1730645135037,4.12054,2426.9,2426.7,0.493135]
[1730645135239,4.16104402,2427.1,2426.5,0.8104]
[1730645135438,5.0,2427.5,2426.5,0.8104]
[1730645135439,4.16166283,2426.8,2426.5,0.8104]
[1730645135670,4.12094,2426.7,2426.2,0.8104]
[1730645135836,0.04120772,2426.7,2426.2,0.8104]
[1730645136040,0.04120772,2426.7,2425.8,4.93267]
[1730645136352,0.04120772,2426.7,2425.9,0.57570306]
[1730645136353,4.12127,2426.5,2425.9,0.57570306]
[1730645136556,3.8204,2427.0,2425.9,0.493267]
[1730645136742,8.24258,2426.5,2425.9,0.493267]
[1730645136943,4.12133,2426.4,2425.9,0.493267]
[1730645137164,0.04120772,2426.3,2425.9,0.493267]
[1730645137372,0.04120772,2426.3,2426.0,0.5425977]
[1730645137581,0.04120772,2426.3,2425.9,0.57570112]
[1730645137582,4.12169,2426.2,2425.9,0.493267]
[1730645137885,0.04120772,2426.1,2425.8,0.8104]
[1730645138582,0.8204,2427.0,2425.8,0.8104]
[1730645138583,4.12147,2426.4,2425.8,0.8104]
[1730645138793,0.04044564,2426.3,2425.8,5.01506612]
[1730645139080,0.04044564,2426.3,2425.8,0.8104]
[1730645139378,4.12176,2426.2,2425.8,0.8104]
[1730645139676,4.12209,2426.0,2425.5,3.8104]
[1730645139988,4.16267406,2425.9,2425.5,0.8104]
[1730645140352,0.04036406,2425.9,2425.5,0.8104]
[1730645140580,4.12202,2426.0,2425.5,4.93315]
[1730645140861,0.04036406,2425.9,2425.6,0.493315]
[1730645141081,0.04036406,2425.9,2425.5,0.8104]
[1730645141082,0.04036406,2425.9,2425.5,4.93311]
[1730645141297,3.01,2426.7,2425.8,4.12232]
[1730645141298,4.12153,2426.3,2425.8,4.12232]
[1730645141476,4.12149,2426.4,2425.8,4.12234]
[1730645141782,4.12149,2426.4,2425.9,4.12208]
[1730645141783,4.12133,2426.4,2425.9,4.12208]
[1730645141946,4.12133,2426.4,2425.9,4.12214]
[1730645142269,0.8204,2426.7,2426.0,1.634848]
[1730645142470,4.12183,2426.2,2425.7,3.8104]
[1730645142673,4.12138,2426.4,2425.7,5.01522484]
[1730645142858,4.12173,2426.2,2425.7,4.93278]
[1730645143708,4.12173,2426.2,2425.7,0.8104]
[1730645143879,8.24354,2426.2,2425.7,4.93291]
[1730645144080,4.94129,2426.7,2425.7,1.72420926]
[1730645144081,4.12205,2426.0,2425.7,1.72420926]
[1730645144253,8.24359,2426.2,2425.7,0.8104]
[1730645144448,4.94129,2426.7,2425.7,0.8104]
[1730645144449,4.12099,2426.6,2425.9,4.12217]
[1730645144649,4.12099,2426.6,2426.1,4.12183]
[1730645144848,4.12117,2426.5,2425.9,4.12208]
[1730645145080,13.24157,2426.8,2426.2,4.12165]
[1730645145289,4.12085,2426.7,2426.2,4.94925]
[1730645145488,8.24151,2426.8,2426.2,5.86461031]
[1730645145770,0.7809,2427.4,2426.4,4.12133]
[1730645145974,0.7809,2427.4,2426.7,4.12073]
[1730645145975,4.11994,2427.3,2426.7,4.12073]
[1730645146158,0.7809,2427.4,2426.6,0.8276]
[1730645146159,4.12031,2427.0,2426.6,0.8276]
[1730645147029,4.12038,2427.0,2426.6,0.8276]
[1730645147295,4.90166,2426.8,2426.1,4.94941]
[1730645147498,4.12048,2426.9,2426.3,4.12134]
[1730645147989,4.12068,2426.8,2426.2,0.08242596]
[1730645148200,4.12068,2426.8,2426.3,4.12148]
[1730645148368,8.24088,2427.0,2426.4,4.12132]
[1730645148703,4.12041,2427.0,2426.4,4.12132]
[1730645148895,4.12056,2426.9,2426.4,4.12132]
[1730645149051,4.12041,2427.0,2426.5,4.12114]
[1730645149261,4.12008,2427.2,2426.6,4.94846]
[1730645149553,0.7809,2427.3,2426.6,0.8276]
[1730645149554,4.12058,2426.9,2426.6,0.8276]
[1730645149782,4.12058,2426.9,2426.4,4.94881]
[1730645149990,15.47,2427.8,2427.4,4.11957]
[1730645150157,4.11827,2428.2,2427.5,5.02939549]
[1730645150355,4.11827,2428.2,2427.5,4.94695]
[1730645150557,0.7809,2428.3,2427.5,0.8276]
[1730645150779,4.11888,2427.9,2427.5,0.8276]
[1730645151105,4.11888,2427.9,2426.6,0.85843048]
[1730645151106,4.11948,2427.5,2427.2,0.8276]
[1730645151395,4.11948,2427.5,2426.9,4.12037]
[1730645151396,4.90003,2427.7,2427.1,4.12006]
[1730645151594,0.03698384,2427.6,2427.1,4.12006]
[1730645151797,0.03698384,2427.6,2427.2,4.11997]
[1730645151995,4.15627384,2427.6,2427.0,4.12023]
[1730645152179,4.15627384,2427.6,2427.0,8.24045]
[1730645152500,4.15627384,2427.6,2427.0,4.12022]
[1730645152659,4.15627384,2427.6,2427.0,8.24044]
[1730645152859,4.15627384,2427.6,2427.0,4.12022]
[1730645153159,4.15627384,2427.6,2427.1,4.12008]
[1730645153160,0.03698384,2427.6,2427.1,4.12008]
[1730645153737,0.03698384,2427.6,2427.4,0.8276]
[1730645153854,0.03698384,2427.6,2427.5,4.20183707]
[1730645154063,8.23646,2428.3,2427.6,4.1192]
[1730645154409,0.03698384,2428.2,2427.7,4.11904]
[1730645154577,4.15525384,2428.2,2427.6,4.11929]
[1730645154754,4.15525384,2428.2,2427.6,5.325829]
[1730645154953,4.15525384,2428.2,2427.7,4.11911]
[1730645154954,0.03698384,2428.2,2427.7,4.11911]
[1730645155199,4.11788,2428.5,2428.0,0.8276]
[1730645155399,0.03698384,2428.4,2428.0,0.8276]
[1730645156070,0.03698384,2428.4,2428.1,4.11842]
[1730645156272,0.03698384,2428.4,2428.1,0.90648]
[1730645156481,4.11752,2428.7,2428.2,0.8276]
[1730645156689,4.11702,2429.0,2428.3,4.20035404]
[1730645156901,4.11683,2429.1,2428.5,4.11773]
[1730645157064,4.11683,2429.1,2428.5,8.23538]
[1730645157269,4.11683,2429.1,2428.5,8.23528]
[1730645157467,4.11683,2429.1,2428.6,1.123538]
[1730645157702,4.11683,2429.1,2428.7,0.8276]
[1730645158766,15.47,2429.2,2428.4,0.8276]
[1730645158767,16.2509,2429.2,2428.4,0.8276]
[1730645158967,4.11713,2428.9,2428.4,0.8276]
[1730645159274,4.11682,2429.1,2428.4,1.622177]
[1730645159606,4.11682,2429.1,2428.4,5.82236751]
[1730645159814,4.11694,2429.0,2428.4,1.622177]
[1730645159966,4.11682,2429.1,2428.4,1.622177]
[1730645160303,4.11709,2428.9,2428.4,1.622177]
[1730645160513,4.11752,2428.7,2428.1,0.8312]
[1730645160672,20.36754,2429.2,2428.1,0.8312]
[1730645160673,5.0,2429.0,2428.1,0.8312]
[1730645161008,4.11771,2428.6,2428.1,0.8312]
[1730645161304,9.11694,2429.0,2428.1,4.94959]
[1730645161305,8.23477,2428.8,2428.1,4.94959]
[1730645161492,8.23405,2429.0,2428.2,4.20061056]
[1730645161819,19.58662,2429.2,2428.6,4.11757]
[1730645162321,19.58662,2429.2,2428.6,0.8312]
[1730645162889,4.11684,2429.1,2428.6,0.8312]
[1730645163093,19.58662,2429.2,2428.6,0.8312]
[1730645163307,4.11675,2429.1,2428.6,0.8312]
[1730645163516,4.11675,2429.1,2428.6,1.32608]
[1730645163677,19.58662,2429.2,2428.6,5.44364]
[1730645164300,19.58662,2429.2,2428.6,1.32608]
[1730645164475,23.70335,2429.2,2428.6,1.32608]
[1730645164671,15.47,2429.2,2428.3,1.33438106]
[1730645164982,4.11702,2429.0,2428.4,4.11784]
[1730645165412,4.1172,2428.9,2428.3,5.45240106]
[1730645165576,8.23443,2428.9,2428.3,5.45240106]
[1730645165772,4.11686,2429.1,2428.3,1.33438106]
[1730645165969,4.11692,2429.0,2428.4,4.55126811]
[1730645166480,4.15598398,2428.9,2428.4,0.43343811]
[1730645166780,0.03879398,2428.9,2428.3,0.8312]
[1730645167005,0.03879398,2428.9,2427.5,0.01]
[1730645167006,0.03879398,2428.9,2427.9,0.8312]
[1730645167230,15.47,2429.2,2428.5,4.11776]
[1730645167231,19.58659,2429.2,2428.5,4.11776]
[1730645167382,0.03879399,2428.8,2428.6,5.03101304]
[1730645167725,15.47,2429.2,2428.7,0.9148773]
[1730645167930,15.47,2429.2,2428.7,5.0322773]
[1730645168230,15.47,2429.2,2428.9,4.11706]
[1730645168513,15.47,2429.4,2428.8,5.0307839]
[1730645168717,15.47,2429.4,2428.8,0.8312]
[1730645168936,15.47,2429.4,2429.1,4.11674]
[1730645169089,15.47,2429.5,2429.2,0.8312]
[1730645169924,15.47,2429.5,2429.2,4.94764]
[1730645170121,15.47,2429.5,2429.3,0.906429]
[1730645171029,0.0605478,2430.0,2429.5,0.8412]
[1730645171234,0.0605478,2430.0,2429.7,4.1156]
[1730645171521,0.0605478,2430.0,2429.8,0.8312]
[1730645171724,0.0605478,2430.0,2429.9,0.49468]
[1730645172281,0.0605478,2430.0,2429.7,2.8312]
[1730645172510,0.0605478,2430.0,2429.7,7.02911423]
[1730645172832,4.11415,2430.7,2430.1,4.11495]
[1730645172833,4.11419,2430.7,2430.1,4.11495]
[1730645172997,4.11387,2430.8,2430.2,0.08228791]
[1730645173416,9.11365,2431.0,2430.2,0.08228791]
[1730645173417,4.11438,2430.5,2430.2,0.08228791]
[1730645173587,4.11438,2430.5,2429.8,4.11555]
[1730645173588,4.525818,2430.5,2429.8,4.11555]
[1730645173826,4.11438,2430.5,2429.8,8.231]
[1730645174014,4.11438,2430.5,2429.8,4.11545]
[1730645174216,4.11421,2430.6,2429.9,3.11529]
[1730645174617,4.11415,2430.7,2430.0,0.08229474]
[1730645174819,4.11415,2430.7,2430.1,4.11496]
[1730645175047,4.11382,2430.9,2430.1,4.11496]
[1730645175048,4.11382,2430.9,2430.2,4.19714763]
[1730645175254,4.11382,2430.9,2430.3,4.1147]
[1730645175458,4.11382,2430.9,2430.4,0.62918448]
[1730645175968,0.0605478,2431.2,2430.4,0.5469]
[1730645176125,0.0605478,2431.2,2430.5,4.11429]
[1730645176317,4.1738278,2431.2,2430.5,9.41437625]
[1730645176526,4.1738278,2431.2,2430.6,0.08227035]
[1730645176820,0.0605478,2431.2,2430.8,4.11378]
[1730645177156,0.0605478,2431.2,2430.9,0.5469]
[1730645177361,15.47,2431.3,2430.9,0.5469]
[1730645177522,15.47,2431.3,2431.0,0.08225959]
[1730645177716,15.47,2431.3,2430.9,4.66059]